[Event "55th Rubinstein Memorial-C 2019"]
[Site "Polanica-Zdroj"]
[Date "2019.08.20"]
[Round "4.6"]
[White "Karnasiewicz, Robert"]
[Black "Rog, Bartlomiej"]
[Result "1/2-1/2"]
[ECO "E81"]
[WhiteElo "1803"]
[BlackElo "1540"]
[Annotator "NA"]
[PlyCount "77"]
[EventDate "2019.08.17"]
[EventType "swiss"]
[EventCountry "POL"]
[SourceTitle "playchess.com"]
[Source "ChessBase"]
[SourceQuality "1"]
[TimeControl "40/5400+30:1800+30"]

1. d4 {[%emt 0:00:13]} Nf6 {[%emt 0:00:00]} 2. c4 {[%emt 0:00:35]} g6 {[%emt 0:00:01]} 3. Nc3 {[%emt 0:00:14]} Bg7 {[%emt 0:00:20]} 4. e4 {[%emt 0:00:08]} d6 {[%emt 0:00:13]} 5. f3 {[%emt 0:00:17]} O-O {[%emt 0:00:22]} 6. Be3 {[%emt 0:00:02]} Nbd7 {[%emt 0:01:09]} 7. Qd2 {[%emt 0:03:26]} e5 {[%emt 0:02:00]} 8. d5 {[%emt 0:01:10]} Ne8 {[%emt 0:01:45]} 9. Bg5 {[%emt 0:03:23]} f6 {[%emt 0:00:49]} 10. Bh4 {[%emt 0:02:09]} c6 {[%emt 0:04:59]} 11. Nge2 {[%emt 0:04:22]} a5 {[%emt 0:02:24]} 12. Nc1 {[%emt 0:16:33]} Qc7 {[%emt 0:05:15]} 13. Nd3 {[%emt 0:01:24]} f5 {[%emt 0:04:16]} 14. Be2 {[%emt 0:03:49]} fxe4 {[%emt 0:05:18]} 15. fxe4 {[%emt 0:01:00]} Nb6 {[%emt 0:03:30]} 16. Nf2 {[%emt 0:02:36]} Nf6 {[%emt 0:09:38]} 17. O-O {[%emt 0:00:26]} cxd5 {[%emt 0:06:16]} 18. Nxd5 {[%emt 0:12:17]} Nbxd5 {[%emt 0:03:18]} 19. cxd5 {[%emt 0:00:01]} Qb6 {[%emt 0:00:25]} 20. Kh1 {[%emt 0:00:20]} Bd7 {[%emt 0:04:28]} 21. Bxf6 {[%emt 0:01:26]} Rxf6 {[%emt 0:02:52]} 22. Ng4 {[%emt 0:01:09]} Bxg4 {[%emt 0:01:03]} 23. Bxg4 {[%emt 0:00:57]} Raf8 {[%emt 0:01:41]} 24. Rxf6 {[%emt 0:00:41]} Rxf6 {[%emt 0:00:45]} 25. Bf3 {[%emt 0:02:51]} Rf7 {[%emt 0:00:23]} 26. Rc1 {[%emt 0:00:30]} Rc7 {[%emt 0:01:10]} 27. Rxc7 {[%emt 0:00:30]} Qxc7 {[%emt 0:00:16]} 28. h3 {[%emt 0:04:42]} Qc5 {[%emt 0:02:22]} 29. Qg5 {[%emt 0:03:42]} Bf8 {[%emt 0:00:47]} 30. h4 {[%emt 0:00:51]} Qc7 {[%emt 0:01:33]} 31. h5 {[%emt 0:04:28]} Qg7 {[%emt 0:00:59]} 32. hxg6 {[%emt 0:01:40]} Qxg6 {[%emt 0:00:48]} 33. Qxg6+ {[%emt 0:01:07]} hxg6 {[%emt 0:00:11]} 34. Kg1 {[%emt 0:00:02]} Kf7 {[%emt 0:00:44]} 35. b3 {[%emt 0:00:30]} Bh6 {[%emt 0:01:11]} 36. Kf2 {[%emt 0:00:02]} Ke7 {[%emt 0:00:22]} 37. Bg4 {[%emt 0:00:20]} Bc1 {[%emt 0:01:58]} 38. a4 {[%emt 0:00:10]} Kd8 {[%emt 0:00:52]} 39. Be6 {[%emt 0:02:13]} 1/2-1/2

[Event "55th Rubinstein Memorial-C 2019"]
[Site "Polanica-Zdroj"]
[Date "2019.08.20"]
[Round "4.7"]
[White "Bugaj, Hanna"]
[Black "Talik, Patryk"]
[Result "1/2-1/2"]
[ECO "D02"]
[WhiteElo "1622"]
[BlackElo "1975"]
[Annotator "NA"]
[PlyCount "68"]
[EventDate "2019.08.17"]
[EventType "swiss"]
[EventCountry "POL"]
[SourceTitle "playchess.com"]
[Source "ChessBase"]
[SourceQuality "1"]
[TimeControl "40/5400+30:1800+30"]

1. d4 {[%emt 0:00:00]} d5 2. Nf3 {[%emt 0:00:00]} Bg4 {[%emt 0:16:56]} 3. e3 {[%emt 0:00:00]} Nd7 {[%emt 0:02:18]} 4. Be2 {[%emt 0:02:22]} e6 {[%emt 0:01:37]} 5. Nbd2 {[%emt 0:01:46]} Bd6 {[%emt 0:01:11]} 6. b3 {[%emt 0:01:34]} Qe7 {[%emt 0:06:42]} 7. Bb2 {[%emt 0:00:44]} c6 {[%emt 0:00:57]} 8. O-O {[%emt 0:03:26]} h5 {[%emt 0:00:50]} 9. c4 {[%emt 0:04:52]} Bf5 {[%emt 0:00:38]} 10. Ne5 {[%emt 0:06:04]} f6 {[%emt 0:04:31]} 11. Nxd7 {[%emt 0:19:52]} Qxd7 {[%emt 0:00:07]} 12. f4 {[%emt 0:02:14]} O-O-O {[%emt 0:23:39]} 13. c5 {[%emt 0:04:53]} Bb8 {[%emt 0:00:05]} 14. b4 {[%emt 0:00:07]} g5 {[%emt 0:00:57]} 15. fxg5 {[%emt 0:07:04]} fxg5 {[%emt 0:00:06]} 16. Nf3 {[%emt 0:02:56]} Nh6 {[%emt 0:07:23]} 17. a4 {[%emt 0:02:59]} Bg4 {[%emt 0:01:45]} 18. Ne5 {[%emt 0:02:48]} Bxe5 {[%emt 0:00:10]} 19. dxe5 {[%emt 0:00:07]} Nf5 {[%emt 0:00:12]} 20. Bd4 {[%emt 0:01:49]} Qh7 {[%emt 0:05:24]} 21. b5 {[%emt 0:03:12]} Nxd4 {[%emt 0:00:25]} 22. exd4 {[%emt 0:00:08]} Qe4 {[%emt 0:00:30]} 23. Bf3 {[%emt 0:00:53]} Bxf3 {[%emt 0:05:14]} 24. Rxf3 {[%emt 0:00:11]} Rdf8 {[%emt 0:00:19]} 25. bxc6 {[%emt 0:11:26]} Rxf3 {[%emt 0:10:09]} 26. cxb7+ {[%emt 0:01:20]} Kxb7 {[%emt 0:00:48]} 27. gxf3 {[%emt 0:00:16]} Qe3+ {[%emt 0:00:06]} 28. Kg2 {[%emt 0:01:20]} Kc7 {[%emt 0:02:19]} 29. Rb1 {[%emt 0:01:19]} Rb8 {[%emt 0:02:16]} 30. Rxb8 {[%emt 0:00:31]} Kxb8 {[%emt 0:00:06]} 31. Qb1+ {[%emt 0:00:30]} Kc8 {[%emt 0:00:50]} 32. Qb2 {[%emt 0:04:24]} Qd3 {[%emt 0:02:14]} 33. c6 {[%emt 0:03:52]} Qh7 {[%emt 0:03:32]} 34. Qe2 {[%emt 0:07:14]} Kc7 {[%emt 0:01:15]} 1/2-1/2

[Event "55th Rubinstein Memorial-C 2019"]
[Site "Polanica-Zdroj"]
[Date "2019.08.20"]
[Round "4.8"]
[White "Wrona, Florian"]
[Black "Szczesniak, Andrzej"]
[Result "1/2-1/2"]
[ECO "C01"]
[WhiteElo "1606"]
[BlackElo "1954"]
[Annotator "NA"]
[PlyCount "71"]
[EventDate "2019.08.17"]
[EventType "swiss"]
[EventCountry "POL"]
[SourceTitle "playchess.com"]
[Source "ChessBase"]
[SourceQuality "1"]
[TimeControl "40/5400+30:1800+30"]

1. e4 {[%emt 0:00:00]} e6 {[%emt 0:00:00]} 2. d4 {[%emt 0:00:00]} d5 {[%emt 0:00:00]} 3. exd5 {[%emt 0:00:00]} exd5 {[%emt 0:00:00]} 4. Nf3 {[%emt 0:00:00]} Nc6 {[%emt 0:00:10]} 5. Bd3 {[%emt 0:01:08]} Bg4 {[%emt 0:01:33]} 6. Be3 {[%emt 0:03:30]} Bd6 {[%emt 0:01:44]} 7. Nbd2 {[%emt 0:05:11]} Nge7 {[%emt 0:01:28]} 8. O-O {[%emt 0:01:22]} Qd7 {[%emt 0:02:54]} 9. Re1 {[%emt 0:09:50]} h6 {[%emt 0:10:34]} 10. h3 {[%emt 0:07:08]} Bh5 {[%emt 0:02:38]} 11. Be2 {[%emt 0:03:22]} O-O-O {[%emt 0:08:58]} 12. c3 {[%emt 0:04:10]} f5 {[%emt 0:01:40]} 13. Nf1 {[%emt 0:03:26]} g5 {[%emt 0:16:30]} 14. Ne5 {[%emt 0:02:56]} Bxe2 {[%emt 0:02:19]} 15. Qxe2 {[%emt 0:00:49]} Bxe5 {[%emt 0:00:18]} 16. dxe5 {[%emt 0:00:16]} Ng6 {[%emt 0:06:14]} 17. Bd4 {[%emt 0:03:57]} Qe6 {[%emt 0:00:56]} 18. Ng3 {[%emt 0:03:57]} Nf4 {[%emt 0:06:51]} 19. Qc2 {[%emt 0:03:07]} Rdf8 {[%emt 0:00:51]} 20. Rac1 {[%emt 0:26:17]} h5 {[%emt 0:07:40]} 21. Qd2 {[%emt 0:02:43]} h4 {[%emt 0:03:57]} 22. Ne2 {[%emt 0:02:00]} Nxe2+ {[%emt 0:02:53]} 23. Qxe2 {[%emt 0:01:14]} g4 {[%emt 0:00:19]} 24. f4 {[%emt 0:00:54]} gxh3 {[%emt 0:06:06]} 25. gxh3 {[%emt 0:00:04]} Rfg8+ {[%emt 0:00:25]} 26. Kh2 {[%emt 0:00:20]} Nxd4 {[%emt 0:00:36]} 27. cxd4 {[%emt 0:00:14]} Rg3 {[%emt 0:00:07]} 28. Rg1 {[%emt 0:00:50]} Qg6 {[%emt 0:00:24]} 29. Qc2 {[%emt 0:05:13]} c6 {[%emt 0:00:33]} 30. Rg2 {[%emt 0:01:39]} Rxg2+ {[%emt 0:03:27]} 31. Qxg2 {[%emt 0:00:02]} Qxg2+ {[%emt 0:00:01]} 32. Kxg2 {[%emt 0:00:05]} Rg8+ {[%emt 0:00:02]} 33. Kf2 {[%emt 0:00:57]} Rg3 {[%emt 0:00:08]} 34. Rc3 {[%emt 0:00:04]} Rg6 {[%emt 0:02:05]} 35. Rc1 {[%emt 0:00:43]} Rg3 {[%emt 0:02:19]} 36. Rc3 {[%emt 0:00:02]} 1/2-1/2

[Event "55th Rubinstein Memorial-C 2019"]
[Site "Polanica-Zdroj"]
[Date "2019.08.20"]
[Round "4.9"]
[White "Filipska, Maja"]
[Black "Janzer, Hubert"]
[Result "0-1"]
[ECO "B94"]
[WhiteElo "1605"]
[BlackElo "1803"]
[Annotator "NA"]
[PlyCount "49"]
[EventDate "2019.08.17"]
[EventType "swiss"]
[EventCountry "POL"]
[SourceTitle "playchess.com"]
[Source "ChessBase"]
[SourceQuality "1"]
[TimeControl "40/5400+30:1800+30"]

1. e4 {[%emt 0:00:00]} c5 {[%emt 0:01:41]} 2. Nf3 {[%emt 0:00:00]} d6 {[%emt 0:00:06]} 3. d4 {[%emt 0:00:00]} cxd4 {[%emt 0:00:20]} 4. Nxd4 {[%emt 0:00:10]} Nf6 {[%emt 0:00:15]} 5. Nc3 {[%emt 0:00:18]} a6 {[%emt 0:00:06]} 6. Bg5 {[%emt 0:00:40]} e5 {[%emt 0:00:54]} 7. Nf5 {[%emt 0:01:04]} Bxf5 {[%emt 0:01:51]} 8. exf5 {[%emt 0:00:08]} Be7 {[%emt 0:00:17]} 9. Bc4 {[%emt 0:01:36]} Nbd7 {[%emt 0:00:54]} 10. O-O {[%emt 0:03:36]} b5 {[%emt 0:00:35]} 11. Bb3 {[%emt 0:01:15]} O-O {[%emt 0:00:27]} 12. Qf3 {[%emt 0:04:15]} b4 {[%emt 0:06:20]} 13. Nd1 {[%emt 0:07:08]} e4 {[%emt 0:09:24]} 14. Qe2 {[%emt 0:03:15]} d5 {[%emt 0:01:04]} 15. Ne3 {[%emt 0:02:48]} d4 {[%emt 0:02:38]} 16. Nc4 {[%emt 0:01:07]} Qc7 {[%emt 0:06:47]} 17. Rad1 {[%emt 0:05:38]} Bc5 {[%emt 0:06:56]} 18. Ba4 {[%emt 0:03:21]} h6 {[%emt 0:00:26]} 19. Bh4 {[%emt 0:01:48]} Qf4 {[%emt 0:00:23]} 20. Bxf6 {[%emt 0:03:39]} Nxf6 {[%emt 0:00:28]} 21. Rfe1 {[%emt 0:03:52]} Rad8 {[%emt 0:04:39]} 22. Bc6 {[%emt 0:06:09]} d3 {[%emt 0:00:51]} 23. cxd3 {[%emt 0:01:41]} exd3 {[%emt 0:00:14]} 24. Qf3 {[%emt 0:01:27]} Qxc4 {[%emt 0:00:14]} 25. b3 0-1

[Event "55th Rubinstein Memorial-C 2019"]
[Site "Polanica-Zdroj"]
[Date "2019.08.20"]
[Round "4.10"]
[White "Jaworski, Tymon"]
[Black "Kroliczek, Gabriela"]
[Result "0-1"]
[ECO "C07"]
[WhiteElo "1598"]
[BlackElo "1787"]
[Annotator "NA"]
[PlyCount "88"]
[EventDate "2019.08.17"]
[EventType "swiss"]
[EventCountry "POL"]
[SourceTitle "playchess.com"]
[Source "ChessBase"]
[SourceQuality "1"]
[TimeControl "40/5400+30:1800+30"]

1. e4 {[%emt 0:00:00]} e6 {[%emt 0:00:00]} 2. d4 {[%emt 0:00:05]} d5 {[%emt 0:00:00]} 3. Nd2 {[%emt 0:00:35]} c5 {[%emt 0:00:00]} 4. Ngf3 {[%emt 0:00:49]} Nc6 {[%emt 0:00:39]} 5. Bb5 {[%emt 0:00:54]} a6 {[%emt 0:01:17]} 6. Bxc6+ {[%emt 0:00:22]} bxc6 {[%emt 0:00:03]} 7. O-O {[%emt 0:00:26]} cxd4 {[%emt 0:02:26]} 8. Nxd4 {[%emt 0:00:21]} Qc7 {[%emt 0:00:59]} 9. c4 {[%emt 0:00:49]} c5 {[%emt 0:02:11]} 10. N4b3 {[%emt 0:01:00]} d4 {[%emt 0:00:10]} 11. f4 {[%emt 0:00:32]} Bd6 {[%emt 0:06:22]} 12. Qg4 {[%emt 0:00:52]} f5 {[%emt 0:00:24]} 13. exf5 {[%emt 0:00:40]} exf5 {[%emt 0:00:04]} 14. Re1+ {[%emt 0:00:55]} Kf8 {[%emt 0:00:06]} 15. Qe2 {[%emt 0:00:56]} Bd7 {[%emt 0:03:13]} 16. Nf3 {[%emt 0:01:23]} Re8 {[%emt 0:01:24]} 17. Qf2 {[%emt 0:00:50]} Nf6 {[%emt 0:07:32]} 18. Rxe8+ {[%emt 0:01:48]} Bxe8 {[%emt 0:05:56]} 19. Ng5 {[%emt 0:00:39]} Kg8 {[%emt 0:02:15]} 20. Bd2 {[%emt 0:05:43]} Ne4 {[%emt 0:06:08]} 21. Nxe4 {[%emt 0:01:01]} fxe4 {[%emt 0:00:07]} 22. Re1 {[%emt 0:01:13]} e3 {[%emt 0:03:30]} 23. Bxe3 {[%emt 0:00:11]} dxe3 {[%emt 0:00:10]} 24. Qxe3 {[%emt 0:00:06]} Bf7 {[%emt 0:00:54]} 25. Qe4 {[%emt 0:03:21]} h5 {[%emt 0:03:48]} 26. g3 {[%emt 0:03:16]} Rh6 {[%emt 0:01:19]} 27. Qa8+ {[%emt 0:00:28]} Bf8 {[%emt 0:00:11]} 28. Re5 {[%emt 0:01:02]} Qd6 {[%emt 0:04:52]} 29. Rxc5 {[%emt 0:00:34]} Qd1+ {[%emt 0:00:23]} 30. Kg2 {[%emt 0:00:44]} Qe2+ {[%emt 0:00:08]} 31. Kg1 {[%emt 0:00:36]} Rd6 {[%emt 0:01:02]} 32. Rd5 {[%emt 0:00:45]} Bxd5 {[%emt 0:00:08]} 33. cxd5 {[%emt 0:00:05]} Qd1+ {[%emt 0:00:59]} 34. Kg2 {[%emt 0:00:19]} Rxd5 {[%emt 0:01:19]} 35. Qxa6 {[%emt 0:00:26]} Qc2+ {[%emt 0:00:40]} 36. Kh3 {[%emt 0:00:19]} Qf5+ {[%emt 0:00:18]} 37. Kg2 {[%emt 0:00:08]} Qe4+ {[%emt 0:01:01]} 38. Kh3 {[%emt 0:00:11]} h4 {[%emt 0:04:13]} 39. Kxh4 {[%emt 0:00:38]} Qf5 {[%emt 0:00:19]} 40. g4 {[%emt 0:00:19]} Be7+ {[%emt 0:00:23]} 41. Kg3 {[%emt 0:30:16]} Rd3+ {[%emt 0:30:04]} 42. Kf2 {[%emt 0:00:10]} Qxf4+ {[%emt 0:00:04]} 43. Ke2 {[%emt 0:00:10]} Qf3+ {[%emt 0:00:13]} 44. Ke1 {[%emt 0:00:11]} Bh4# {[%emt 0:00:13]} 0-1

[Event "55th Rubinstein Memorial-C 2019"]
[Site "Polanica-Zdroj"]
[Date "2019.08.20"]
[Round "4.11"]
[White "Karleszko, Karolina"]
[Black "Gajzner, Ryszard"]
[Result "0-1"]
[ECO "B27"]
[WhiteElo "1596"]
[BlackElo "1740"]
[Annotator "NA"]
[PlyCount "38"]
[EventDate "2019.08.17"]
[EventType "swiss"]
[EventCountry "POL"]
[SourceTitle "playchess.com"]
[Source "ChessBase"]
[SourceQuality "1"]
[TimeControl "40/5400+30:1800+30"]

1. e4 {[%emt 0:00:00]} c5 {[%emt 0:00:00]} 2. Nf3 {[%emt 0:00:00]} g6 {[%emt 0:00:00]} 3. d4 {[%emt 0:00:54]} cxd4 {[%emt 0:00:00]} 4. Nxd4 {[%emt 0:00:06]} Nc6 {[%emt 0:00:00]} 5. Be3 {[%emt 0:02:39]} Nf6 {[%emt 0:00:51]} 6. Nc3 {[%emt 0:00:47]} Bg7 {[%emt 0:00:08]} 7. f3 {[%emt 0:07:15]} O-O {[%emt 0:00:20]} 8. Qd2 {[%emt 0:00:37]} d5 {[%emt 0:00:57]} 9. O-O-O {[%emt 0:09:35]} dxe4 {[%emt 0:03:43]} 10. Nxc6 {[%emt 0:04:48]} Qxd2+ {[%emt 0:00:07]} 11. Rxd2 {[%emt 0:00:06]} bxc6 {[%emt 0:00:06]} 12. fxe4 {[%emt 0:00:18]} Ng4 {[%emt 0:00:33]} 13. Bc5 {[%emt 0:02:50]} Bh6 {[%emt 0:01:28]} 14. Bxe7 {[%emt 0:00:33]} Re8 {[%emt 0:00:49]} 15. Bc5 {[%emt 0:00:56]} Rd8 {[%emt 0:06:14]} 16. Bd3 {[%emt 0:00:16]} Ne5 {[%emt 0:02:16]} 17. Kd1 {[%emt 0:06:04]} Bxd2 {[%emt 0:00:07]} 18. Kxd2 {[%emt 0:00:05]} Ba6 {[%emt 0:00:41]} 19. Kc1 {[%emt 0:07:01]} Bxd3 0-1

[Event "55th Rubinstein Memorial-C 2019"]
[Site "Polanica-Zdroj"]
[Date "2019.08.20"]
[Round "4.12"]
[White "Kolodziejski, Piotr"]
[Black "Zalega, Maciej"]
[Result "0-1"]
[ECO "B66"]
[WhiteElo "1701"]
[BlackElo "1429"]
[Annotator "NA"]
[PlyCount "84"]
[EventDate "2019.08.17"]
[EventType "swiss"]
[EventCountry "POL"]
[SourceTitle "playchess.com"]
[Source "ChessBase"]
[SourceQuality "1"]
[TimeControl "40/5400+30:1800+30"]

1. e4 {[%emt 0:00:00]} c5 {[%emt 0:00:00]} 2. Nf3 {[%emt 0:00:00]} d6 {[%emt 0:00:00]} 3. d4 {[%emt 0:00:00]} cxd4 {[%emt 0:00:00]} 4. Nxd4 {[%emt 0:00:00]} Nf6 {[%emt 0:00:00]} 5. Nc3 {[%emt 0:00:07]} Nc6 {[%emt 0:00:00]} 6. Bg5 {[%emt 0:00:11]} e6 {[%emt 0:00:20]} 7. Qd2 {[%emt 0:00:25]} a6 {[%emt 0:00:20]} 8. f3 {[%emt 0:01:05]} Bd7 {[%emt 0:01:56]} 9. O-O-O {[%emt 0:03:52]} Be7 {[%emt 0:00:21]} 10. h4 {[%emt 0:01:45]} h6 {[%emt 0:01:12]} 11. Be3 {[%emt 0:00:28]} h5 {[%emt 0:01:26]} 12. Bg5 {[%emt 0:01:06]} Nxd4 {[%emt 0:03:54]} 13. Qxd4 {[%emt 0:00:28]} b5 {[%emt 0:02:04]} 14. e5 {[%emt 0:09:05]} dxe5 {[%emt 0:10:14]} 15. Qxe5 {[%emt 0:00:23]} b4 {[%emt 0:08:49]} 16. Ne4 {[%emt 0:02:30]} Nxe4 {[%emt 0:04:17]} 17. Bxe7 {[%emt 0:00:57]} Qxe7 {[%emt 0:05:02]} 18. Qxg7 {[%emt 0:03:22]} Qf6 {[%emt 0:01:42]} 19. Qxf6 {[%emt 0:04:35]} Nxf6 {[%emt 0:00:04]} 20. Rd6 {[%emt 0:02:06]} Ke7 {[%emt 0:01:55]} 21. Rxa6 {[%emt 0:00:21]} Rxa6 {[%emt 0:00:01]} 22. Bxa6 {[%emt 0:00:08]} Rg8 {[%emt 0:00:08]} 23. g4 {[%emt 0:00:33]} hxg4 {[%emt 0:02:35]} 24. fxg4 {[%emt 0:00:05]} Bc6 {[%emt 0:02:02]} 25. Rh3 {[%emt 0:00:23]} Rxg4 {[%emt 0:01:52]} 26. h5 {[%emt 0:00:20]} Ne4 {[%emt 0:02:23]} 27. b3 {[%emt 0:02:29]} Rg1+ {[%emt 0:00:08]} 28. Kb2 {[%emt 0:00:15]} Nc3 {[%emt 0:00:06]} 29. Rxc3 {[%emt 0:00:17]} bxc3+ {[%emt 0:00:03]} 30. Kxc3 {[%emt 0:00:15]} Rg2 {[%emt 0:00:58]} 31. Bd3 {[%emt 0:00:25]} Rh2 {[%emt 0:00:19]} 32. b4 {[%emt 0:00:39]} Rxh5 {[%emt 0:00:12]} 33. Kd4 {[%emt 0:00:18]} Rd5+ {[%emt 0:00:50]} 34. Ke3 {[%emt 0:00:24]} Rd8 {[%emt 0:01:34]} 35. c4 {[%emt 0:00:28]} Ra8 {[%emt 0:00:18]} 36. b5 {[%emt 0:00:06]} Bh1 {[%emt 0:00:48]} 37. Bb1 {[%emt 0:00:19]} Kd6 {[%emt 0:00:15]} 38. Kd4 {[%emt 0:00:26]} e5+ {[%emt 0:00:06]} 39. Kc3 {[%emt 0:00:14]} Kc5 {[%emt 0:00:05]} 40. Kb3 {[%emt 0:00:04]} e4 {[%emt 0:00:17]} 41. a4 {[%emt 0:30:05]} Bf3 {[%emt 0:30:16]} 42. a5 {[%emt 0:00:07]} Rxa5 {[%emt 0:00:25]} 0-1

[Event "55th Rubinstein Memorial-C 2019"]
[Site "Polanica-Zdroj"]
[Date "2019.08.20"]
[Round "4.13"]
[White "Kurtycz, Maciej"]
[Black "Bartlomowicz, Jakub"]
[Result "1-0"]
[ECO "C77"]
[WhiteElo "1689"]
[BlackElo "1497"]
[Annotator "NA"]
[PlyCount "107"]
[EventDate "2019.08.17"]
[EventType "swiss"]
[EventCountry "POL"]
[SourceTitle "playchess.com"]
[Source "ChessBase"]
[SourceQuality "1"]
[TimeControl "40/5400+30:1800+30"]

1. e4 {[%emt 0:00:00]} e5 {[%emt 0:00:00]} 2. Nf3 {[%emt 0:00:00]} Nc6 {[%emt 0:00:03]} 3. Bb5 {[%emt 0:00:01]} a6 {[%emt 0:00:56]} 4. Ba4 {[%emt 0:00:07]} Nf6 {[%emt 0:00:56]} 5. d3 {[%emt 0:00:19]} b5 {[%emt 0:01:31]} 6. Bb3 {[%emt 0:00:07]} Bd6 {[%emt 0:07:11]} 7. c3 {[%emt 0:02:21]} O-O {[%emt 0:00:43]} 8. O-O {[%emt 0:00:09]} h6 {[%emt 0:03:22]} 9. Re1 {[%emt 0:00:32]} Re8 {[%emt 0:00:25]} 10. Nbd2 {[%emt 0:00:52]} Bc5 {[%emt 0:05:53]} 11. Nf1 {[%emt 0:01:29]} d6 {[%emt 0:02:08]} 12. h3 {[%emt 0:01:29]} Be6 {[%emt 0:02:11]} 13. Bxe6 {[%emt 0:01:17]} fxe6 {[%emt 0:00:12]} 14. d4 {[%emt 0:00:46]} exd4 {[%emt 0:00:30]} 15. cxd4 {[%emt 0:00:02]} Bb6 {[%emt 0:00:55]} 16. Ng3 {[%emt 0:00:54]} Qd7 {[%emt 0:02:06]} 17. b3 {[%emt 0:10:46]} Qf7 {[%emt 0:08:28]} 18. Bb2 {[%emt 0:02:09]} d5 {[%emt 0:03:06]} 19. e5 {[%emt 0:01:16]} Nd7 {[%emt 0:00:47]} 20. Rc1 {[%emt 0:06:06]} Na5 {[%emt 0:04:04]} 21. Ba3 {[%emt 0:01:02]} Nb7 {[%emt 0:02:10]} 22. Rc6 {[%emt 0:01:52]} a5 {[%emt 0:01:11]} 23. Bb2 {[%emt 0:03:13]} Rec8 {[%emt 0:02:51]} 24. Qe2 {[%emt 0:05:51]} b4 {[%emt 0:02:10]} 25. Qd2 {[%emt 0:03:26]} Nb8 {[%emt 0:01:25]} 26. Rcc1 {[%emt 0:00:29]} c5 {[%emt 0:01:35]} 27. dxc5 {[%emt 0:00:30]} Nxc5 {[%emt 0:00:13]} 28. Nd4 {[%emt 0:00:30]} Nbd7 {[%emt 0:01:20]} 29. f4 {[%emt 0:01:03]} Qg6 {[%emt 0:01:27]} 30. Kh2 {[%emt 0:01:10]} Qd3 {[%emt 0:06:24]} 31. Rcd1 {[%emt 0:01:40]} Qxd2 {[%emt 0:00:58]} 32. Rxd2 {[%emt 0:00:02]} Rf8 {[%emt 0:01:20]} 33. f5 {[%emt 0:00:09]} exf5 {[%emt 0:00:11]} 34. Ndxf5 {[%emt 0:00:22]} a4 {[%emt 0:02:47]} 35. e6 {[%emt 0:01:27]} Nf6 {[%emt 0:06:23]} 36. e7 {[%emt 0:00:28]} Rfe8 {[%emt 0:01:18]} 37. Bxf6 {[%emt 0:00:07]} gxf6 {[%emt 0:00:11]} 38. Nd6 {[%emt 0:00:40]} axb3 {[%emt 0:01:47]} 39. axb3 {[%emt 0:00:14]} Bc7 {[%emt 0:01:53]} 40. Nxe8 {[%emt 0:00:17]} Rxe8 {[%emt 0:00:12]} 41. Rxd5 {[%emt 0:31:23]} Na6 {[%emt 0:30:20]} 42. Re6 {[%emt 0:03:16]} Nb8 {[%emt 0:02:29]} 43. h4 {[%emt 0:06:08]} Kf7 {[%emt 0:00:08]} 44. Re4 {[%emt 0:00:25]} Rxe7 {[%emt 0:00:52]} 45. Kh3 {[%emt 0:00:28]} Rxe4 {[%emt 0:02:21]} 46. Nxe4 {[%emt 0:00:01]} Ke6 {[%emt 0:00:14]} 47. Rb5 {[%emt 0:00:20]} f5 {[%emt 0:00:42]} 48. Ng3 {[%emt 0:00:57]} Nc6 {[%emt 0:00:56]} 49. Nxf5 {[%emt 0:00:17]} Be5 {[%emt 0:02:09]} 50. Nxh6 {[%emt 0:01:54]} Bc3 {[%emt 0:00:04]} 51. Nf5 {[%emt 0:00:38]} Be1 {[%emt 0:00:54]} 52. g4 {[%emt 0:00:38]} Na7 {[%emt 0:00:07]} 53. Nd4+ {[%emt 0:01:28]} Kd6 {[%emt 0:00:13]} 54. Rb7 {[%emt 0:00:14]} 1-0

[Event "55th Rubinstein Memorial-C 2019"]
[Site "Polanica-Zdroj"]
[Date "2019.08.20"]
[Round "4.14"]
[White "Grossmann, Ryszard"]
[Black "Rzenca, Jerzy"]
[Result "0-1"]
[ECO "A12"]
[WhiteElo "1975"]
[BlackElo "1419"]
[Annotator "NA"]
[PlyCount "96"]
[EventDate "2019.08.17"]
[EventType "swiss"]
[EventCountry "POL"]
[SourceTitle "playchess.com"]
[Source "ChessBase"]
[SourceQuality "1"]
[TimeControl "40/5400+30:1800+30"]

1. c4 {[%emt 0:00:00]} c6 {[%emt 0:00:00]} 2. Nf3 {[%emt 0:01:36]} d5 {[%emt 0:00:25]} 3. b3 {[%emt 0:00:16]} Bf5 {[%emt 0:03:11]} 4. Bb2 {[%emt 0:02:32]} e6 {[%emt 0:01:40]} 5. g3 {[%emt 0:01:24]} Nd7 {[%emt 0:05:07]} 6. Bg2 {[%emt 0:00:40]} Ngf6 {[%emt 0:02:06]} 7. O-O {[%emt 0:00:19]} h6 {[%emt 0:07:10]} 8. d3 {[%emt 0:00:19]} Be7 {[%emt 0:03:37]} 9. Nbd2 {[%emt 0:00:10]} O-O {[%emt 0:00:23]} 10. Qc2 {[%emt 0:05:55]} Bh7 {[%emt 0:01:19]} 11. Rad1 {[%emt 0:02:47]} Rc8 {[%emt 0:24:04]} 12. Qb1 {[%emt 0:03:11]} Qb6 {[%emt 0:03:49]} 13. Qa1 {[%emt 0:06:26]} Rfd8 {[%emt 0:01:55]} 14. h3 {[%emt 0:12:41]} Bd6 {[%emt 0:02:41]} 15. Bd4 {[%emt 0:04:26]} Bc5 {[%emt 0:01:55]} 16. Bxc5 {[%emt 0:00:23]} Nxc5 {[%emt 0:00:23]} 17. d4 {[%emt 0:02:37]} Nce4 {[%emt 0:02:12]} 18. e3 {[%emt 0:08:19]} Qb4 {[%emt 0:04:55]} 19. c5 {[%emt 0:09:04]} Re8 {[%emt 0:13:24]} 20. a3 {[%emt 0:01:49]} Qa5 {[%emt 0:01:11]} 21. b4 {[%emt 0:00:28]} Qc7 {[%emt 0:01:15]} 22. Rfe1 {[%emt 0:02:39]} Nd7 {[%emt 0:01:59]} 23. Ne5 {[%emt 0:05:23]} Nxd2 {[%emt 0:01:00]} 24. Rxd2 {[%emt 0:01:04]} f6 {[%emt 0:02:00]} 25. Nxd7 {[%emt 0:00:11]} Qxd7 {[%emt 0:00:01]} 26. Qc3 {[%emt 0:04:13]} e5 {[%emt 0:01:32]} 27. Red1 {[%emt 0:02:38]} Rcd8 {[%emt 0:01:57]} 28. Rb2 {[%emt 0:00:26]} exd4 {[%emt 0:01:28]} 29. Rxd4 {[%emt 0:00:47]} Be4 {[%emt 0:00:21]} 30. Rbd2 {[%emt 0:09:55]} Bxg2 {[%emt 0:01:23]} 31. Kxg2 {[%emt 0:00:03]} Qc7 {[%emt 0:01:06]} 32. Qd3 {[%emt 0:02:41]} Rb8 {[%emt 0:04:06]} 33. e4 {[%emt 0:00:48]} Rxe4 {[%emt 0:01:05]} 34. Rxd5 {[%emt 0:02:36]} Re7 {[%emt 0:04:02]} 35. Rd6 Qc8 36. Qg6 {[%emt 0:02:35]} Qf8 {[%emt 0:02:07]} 37. R2d4 {[%emt 0:00:52]} Qf7 {[%emt 0:00:57]} 38. Qf5 {[%emt 0:01:16]} Rbe8 {[%emt 0:00:18]} 39. Rg4 {[%emt 0:01:28]} Re6 {[%emt 0:00:39]} 40. Rgd4 {[%emt 0:00:50]} R6e7 {[%emt 0:00:13]} 41. Qd3 {[%emt 0:30:34]} a6 {[%emt 0:30:44]} 42. h4 {[%emt 0:00:41]} Qa2 {[%emt 0:00:35]} 43. Rd7 {[%emt 0:02:01]} Re2 {[%emt 0:00:32]} 44. Qf3 {[%emt 0:01:40]} Rxf2+ 45. Qxf2 {[%emt 0:00:15]} Re2 {[%emt 0:00:19]} 46. Qxe2 {[%emt 0:00:42]} Qxe2+ {[%emt 0:00:02]} 47. Kh3 {[%emt 0:00:16]} Qf1+ {[%emt 0:00:32]} 48. Kg4 {[%emt 0:00:57]} h5+ {[%emt 0:00:18]} 0-1